fUSD/lending_fUSD_20250215
["ID","MTS","AMOUNT","RATE_DAILY","PERIOD"]
[353166918,1739619052904,-500.0,0.00011286,2]
[353166919,1739619052914,-835.01,0.00011286,2]
[353166920,1739619052924,-1195.38,0.00011286,2]
[353166921,1739619052933,-500.0,0.00011286,2]
[353166922,1739619052943,-566.8,0.00011286,2]
[353166923,1739619052953,-500.0,0.00011286,2]
[353166924,1739619052964,-519.07,0.00011286,2]
[353166925,1739619052974,-613.61,0.00011287,2]
[353166926,1739619052983,-500.0,0.00011287,2]
[353166927,1739619052993,-450.73826404,0.00011287,2]
[353166928,1739619053005,-329.33,0.00011287,2]
[353166929,1739619053014,-500.0,0.00011287,2]
[353166930,1739619053023,-500.0,0.00011287,2]
[353166931,1739619053032,-500.0,0.00011287,2]
[353166932,1739619053041,-500.0,0.00011287,2]
[353166933,1739619053050,-500.0,0.00011287,2]
[353166934,1739619053060,-500.0,0.00011287,2]
[353166935,1739619053069,-500.0,0.00011287,2]
[353166936,1739619053079,-500.0,0.00011287,2]
[353166937,1739619053094,-352.66,0.00011287,2]
[353166938,1739619053104,-500.0,0.00011287,2]
[353166939,1739619053113,-500.0,0.00011287,2]
[353166940,1739619053123,-500.0,0.00011287,2]
[353166941,1739619053134,-507.89,0.00011287,2]
[353166942,1739619053143,-500.0,0.00011287,2]
[353166943,1739619053153,-500.0,0.00011287,2]
[353166944,1739619053163,-500.0,0.00011287,2]
[353166945,1739619053173,-500.0,0.00011287,2]
[353166946,1739619053183,-500.0,0.00011287,2]
[353166947,1739619053193,-186.81,0.00011287,2]
[353166948,1739619053203,-486.01,0.00011287,2]
[353166949,1739619053213,-500.0,0.00011287,2]
[353166950,1739619053222,-500.0,0.00011287,2]
[353166951,1739619053233,-500.0,0.00011287,2]
[353166952,1739619053243,-500.0,0.00011287,2]
[353166953,1739619053253,-281.99,0.00011287,2]
[353166954,1739619053263,-500.0,0.00011287,2]
[353166955,1739619053272,-500.0,0.00011287,2]
[353166956,1739619053281,-2793.53,0.00011287,2]
[353166957,1739619053290,-500.0,0.00011287,2]
[353166958,1739619053299,-500.0,0.00011287,2]
[353166959,1739619053308,-191.188552,0.00011287,2]
[353166960,1739619053318,-500.0,0.00011287,2]
[353166961,1739619053327,-500.0,0.00011287,2]
[353166962,1739619053336,-500.0,0.00011287,2]
[353166963,1739619053346,-185.717147,0.00011287,2]
[353166964,1739619053356,-500.0,0.00011287,2]
[353166965,1739619053366,-500.0,0.00011287,2]
[353166966,1739619053375,-500.0,0.00011287,2]
[353166967,1739619053385,-500.0,0.00011287,2]
[353166968,1739619053395,-500.0,0.00011287,2]
[353166969,1739619053404,-338.94,0.00011287,2]
[353166970,1739619053413,-500.0,0.00011287,2]
[353166971,1739619053424,-153.66,0.00011287,2]
[353166972,1739619053434,-500.0,0.00011287,2]
[353166973,1739619053444,-500.0,0.00011287,2]
[353166974,1739619053453,-427.63,0.00011287,2]
[353166975,1739619053464,-500.0,0.00011287,2]
[353166976,1739619053473,-500.0,0.00011287,2]
[353166977,1739619053482,-500.0,0.00011287,2]
[353166978,1739619053493,-500.0,0.00011287,2]
[353166979,1739619053502,-500.0,0.00011287,2]
[353166980,1739619053513,-500.0,0.00011287,2]
[353166981,1739619053525,-528.71434032,0.00011287,2]
[353166982,1739619053535,-500.0,0.00011287,2]
[353166983,1739619053545,-500.0,0.00011287,2]
[353166984,1739619053556,-500.0,0.00011287,2]
[353166985,1739619053567,-500.0,0.00011287,2]
[353166986,1739619053577,-500.0,0.00011287,2]
[353166987,1739619053586,-646.74,0.00011287,2]
[353166988,1739619053596,-500.0,0.00011287,2]
[353166989,1739619053606,-500.0,0.00011287,2]
[353166990,1739619053616,-500.0,0.00011287,2]
[353166991,1739619053625,-378.21,0.00011287,2]
[353166992,1739619053635,-626.68,0.00011287,2]
[353166993,1739619053644,-500.0,0.00011287,2]
[353166994,1739619053654,-500.0,0.00011287,2]
[353166995,1739619053664,-500.0,0.00011287,2]
[353166996,1739619053673,-500.0,0.00011287,2]
[353166997,1739619053683,-547.0,0.00011287,2]
[353166998,1739619053692,-500.0,0.00011287,2]
[353166999,1739619053702,-500.0,0.00011287,2]
[353167000,1739619053711,-507.88319479,0.00011287,2]
[353167001,1739619053720,-500.0,0.00011287,2]
[353167002,1739619053730,-500.0,0.00011287,2]
[353167003,1739619053739,-500.0,0.00011287,2]
[353167004,1739619053748,-500.0,0.00011287,2]
[353167005,1739619053758,-522.13,0.00011287,2]
[353167006,1739619053767,-500.0,0.00011287,2]
[353167007,1739619053779,-500.0,0.00011287,2]
[353167008,1739619053788,-500.0,0.00011287,2]
[353167009,1739619053798,-500.0,0.00011287,2]
[353167010,1739619053807,-500.0,0.00011287,2]
[353167011,1739619053817,-500.0,0.00011287,2]
[353167012,1739619053826,-500.0,0.00011287,2]
[353167013,1739619053835,-500.0,0.00011287,2]
[353167014,1739619053845,-500.0,0.00011287,2]
[353167015,1739619053855,-500.0,0.00011287,2]
[353167016,1739619053866,-596.55,0.00011287,2]
[353167017,1739619053875,-500.0,0.00011287,2]
[353167018,1739619053884,-628.66,0.00011287,2]
[353167019,1739619053894,-500.0,0.00011287,2]
[353167020,1739619053903,-500.0,0.00011287,2]
[353167021,1739619053912,-590.44,0.00011287,2]
[353167022,1739619053921,-526.64,0.00011287,2]
[353167023,1739619053932,-500.0,0.00011287,2]
[353167024,1739619053942,-528.92,0.00011287,2]
[353167025,1739619053952,-500.0,0.00011287,2]
[353167026,1739619053961,-619.87,0.00011287,2]
[353167027,1739619053971,-500.0,0.00011287,2]
[353167028,1739619053980,-1162.02,0.00011287,2]
[353167029,1739619053990,-478.63,0.00011287,2]
[353167030,1739619054000,-500.0,0.00011287,2]
[353167031,1739619054009,-837.66,0.00011287,2]
[353167032,1739619054019,-646.81,0.00011287,2]
[353167033,1739619054030,-531.07,0.00011287,2]
[353167034,1739619054040,-500.0,0.00011287,2]
[353167035,1739619054049,-500.0,0.00011287,2]
[353167036,1739619054059,-500.0,0.00011287,2]
[353167037,1739619054069,-500.0,0.00011287,2]
[353167038,1739619054079,-500.0,0.00011287,2]
[353167039,1739619054090,-500.0,0.00011287,2]
[353167040,1739619054101,-500.0,0.00011287,2]
[353167041,1739619054111,-784.31,0.00011287,2]
[353167042,1739619054121,-500.0,0.00011287,2]
[353167043,1739619054130,-500.0,0.00011287,2]
[353167044,1739619054140,-500.0,0.00011287,2]
[353167045,1739619054149,-500.0,0.00011287,2]
[353167046,1739619054158,-500.0,0.00011287,2]
[353167047,1739619054167,-500.0,0.00011287,2]
[353167048,1739619054177,-500.0,0.00011287,2]
[353167049,1739619054187,-1107.07,0.00011287,2]
[353167050,1739619054196,-819.55,0.00011287,2]
[353167051,1739619054205,-843.68,0.00011287,2]
[353167052,1739619054214,-500.0,0.00011287,2]
[353167053,1739619054224,-647.45,0.00011287,2]
[353167054,1739619054234,-500.0,0.00011287,2]
[353167055,1739619054244,-500.0,0.00011287,2]
[353167056,1739619054253,-500.0,0.00011287,2]
[353167057,1739619054264,-500.0,0.00011287,2]
[353167058,1739619054274,-630.02,0.00011287,2]
[353167059,1739619054284,-500.0,0.00011287,2]
[353167060,1739619054293,-580.45,0.00011287,2]
[353167061,1739619054303,-500.0,0.00011287,2]
[353167062,1739619054313,-724.12,0.00011287,2]
[353167063,1739619054323,-548.96,0.00011287,2]
[353167064,1739619054332,-500.0,0.00011287,2]
[353167065,1739619054347,-500.0,0.00011287,2]
[353167066,1739619054356,-500.0,0.00011287,2]
[353167067,1739619054366,-854.44,0.00011287,2]
[353167068,1739619054376,-1881.76,0.00011287,2]
[353167069,1739619054385,-500.0,0.00011287,2]
[353167070,1739619054395,-500.0,0.00011287,2]
[353167071,1739619054405,-579.54,0.00011287,2]
[353167072,1739619054416,-2632.38,0.00011287,2]
[353167073,1739619054426,-500.0,0.00011287,2]
[353167074,1739619054435,-1314.99,0.00011287,2]
[353167075,1739619054445,-500.0,0.00011287,2]
[353167076,1739619054455,-500.0,0.00011287,2]
[353167077,1739619054465,-989.59,0.00011287,2]
[353167078,1739619054474,-500.0,0.00011287,2]
[353167079,1739619054484,-774.47,0.00011287,2]
[353167080,1739619054494,-500.0,0.00011287,2]
[353167081,1739619054504,-500.0,0.00011287,2]
[353167082,1739619054514,-1132.95,0.00011287,2]
[353167083,1739619054524,-537.7,0.00011287,2]
[353167084,1739619054533,-500.0,0.00011287,2]
[353167085,1739619054543,-601.61,0.00011287,2]
[353167086,1739619054553,-500.0,0.00011287,2]
[353167087,1739619054563,-500.0,0.00011287,2]
[353167088,1739619054573,-714.88,0.00011287,2]
[353167089,1739619054583,-523.36,0.00011287,2]
[353167090,1739619054593,-353.81,0.00011287,2]
[353167091,1739619054603,-500.0,0.00011287,2]
[353167092,1739619054614,-500.0,0.00011287,2]
[353167093,1739619054625,-500.0,0.00011287,2]
[353167094,1739619054635,-500.0,0.00011287,2]
[353167095,1739619054644,-500.0,0.00011287,2]
[353167096,1739619054654,-631.2,0.00011287,2]
[353167097,1739619054664,-500.0,0.00011287,2]
[353167098,1739619054674,-791.89,0.00011287,2]
[353167099,1739619054684,-500.0,0.00011287,2]
[353167100,1739619054693,-500.0,0.00011287,2]
[353167101,1739619054704,-500.0,0.00011287,2]
[353167102,1739619054714,-500.0,0.00011287,2]
[353167103,1739619054723,-833.76,0.00011287,2]
[353167104,1739619054733,-500.0,0.00011287,2]
[353167105,1739619054743,-500.0,0.00011287,2]
[353167106,1739619054752,-500.0,0.00011287,2]
[353167107,1739619054762,-500.0,0.00011287,2]
[353167108,1739619054771,-500.0,0.00011287,2]
[353167109,1739619054781,-755.55,0.00011287,2]
[353167110,1739619054791,-500.0,0.00011287,2]
[353167111,1739619054800,-500.0,0.00011287,2]
[353167112,1739619054810,-500.0,0.00011287,2]
[353167113,1739619054973,-411.59,0.00011287,2]
[353167114,1739619054988,-500.0,0.00011287,2]
[353167115,1739619054997,-500.0,0.00011287,2]
[353167116,1739619055008,-500.0,0.00011287,2]
[353167117,1739619055018,-500.0,0.00011287,2]
[353167118,1739619055028,-739.88,0.00011287,2]
[353167119,1739619055037,-194.94,0.00011287,2]
[353167120,1739619055046,-500.0,0.00011287,2]
[353167121,1739619055056,-500.0,0.00011287,2]
[353167122,1739619055066,-1185.97,0.00011287,2]
[353167123,1739619055076,-191.92,0.00011287,2]
[353167124,1739619055087,-764.15,0.00011287,2]
[353167125,1739619055098,-500.0,0.00011287,2]
[353167126,1739619055108,-4057.71,0.00011287,2]
[353167127,1739619055117,-1015.48,0.00011287,2]
[353167128,1739619055127,-357.53,0.00011287,2]
[353167129,1739619055136,-500.0,0.00011287,2]
[353167130,1739619055146,-502.09,0.00011287,2]
[353167131,1739619055155,-940.41,0.00011368,2]
[353167132,1739619055165,-500.0,0.00011368,2]
[353167133,1739619055175,-500.0,0.00011368,2]
[353167134,1739619055184,-694.41,0.00011368,2]
[353167135,1739619055194,-554.54,0.00011368,2]
[353167136,1739619055204,-786.58,0.00011368,2]
[353167137,1739619055213,-829.98,0.00011368,2]
[353167138,1739619055223,-500.0,0.00011368,2]
[353167139,1739619055232,-606.13,0.00011368,2]
[353167140,1739619055243,-971.24,0.00011368,2]
[353167141,1739619055252,-500.19,0.00011368,2]
[353167142,1739619055262,-888.16,0.00011368,2]
[353167143,1739619055272,-500.0,0.00011368,2]
[353167144,1739619055282,-500.36,0.00011368,2]
[353167145,1739619055292,-500.0,0.00011368,2]
[353167146,1739619055303,-500.0,0.00011368,2]
[353167147,1739619055314,-717.64,0.00011368,2]
[353167148,1739619055324,-1161.09,0.00011368,2]
[353167149,1739619055334,-500.0,0.00011368,2]
[353167150,1739619055344,-500.0,0.00011368,2]
[353167151,1739619055353,-500.0,0.00011368,2]
[353167152,1739619055363,-371.27,0.00011368,2]
[353167153,1739619055372,-500.0,0.00011368,2]
[353167154,1739619055382,-500.0,0.00011368,2]
[353167155,1739619055392,-500.0,0.00011368,2]
[353167156,1739619055401,-835.01,0.00011368,2]
[353167157,1739619055411,-1195.38,0.00011368,2]
[353167158,1739619055421,-500.0,0.00011368,2]
[353167159,1739619055431,-566.8,0.00011368,2]
[353167160,1739619055440,-500.0,0.00011368,2]
[353167161,1739619055450,-519.07,0.00011368,2]
[353167162,1739619055459,-500.0,0.00011369,2]
[353167163,1739619055468,-500.0,0.00011369,2]
[353167164,1739619055478,-485.24,0.00011369,2]
[353167165,1739619055488,-500.0,0.00011369,2]
[353167166,1739619055497,-500.0,0.00011369,2]
[353167167,1739619055507,-500.0,0.00011369,2]
[353167168,1739619055516,-500.0,0.00011369,2]
[353167169,1739619055525,-500.0,0.00011369,2]
[353167170,1739619055534,-500.0,0.00011369,2]
[353167171,1739619055543,-500.0,0.00011369,2]
[353167172,1739619055552,-500.0,0.00011369,2]
[353167173,1739619055562,-500.0,0.00011369,2]
[353167174,1739619055572,-630.02,0.00011369,2]
[353167175,1739619055581,-500.0,0.00011369,2]
[353167176,1739619055591,-500.0,0.00011369,2]
[353167177,1739619055600,-500.0,0.00011369,2]
[353167178,1739619055610,-500.0,0.00011369,2]
[353167179,1739619055620,-583.5,0.00011369,2]
[353167180,1739619055629,-500.0,0.00011369,2]
[353167181,1739619055638,-554.43,0.00011369,2]
[353167182,1739619055648,-500.0,0.00011369,2]
[353167183,1739619055658,-500.0,0.00011369,2]
[353167184,1739619055667,-270.52,0.00011369,2]
[353167185,1739619055676,-2793.53,0.00011369,2]
[353167186,1739619055686,-500.0,0.00011369,2]
[353167187,1739619055695,-500.0,0.00011369,2]
[353167188,1739619055704,-191.188552,0.00011369,2]
[353167189,1739619055713,-500.0,0.00011369,2]
[353167190,1739619055723,-500.0,0.00011369,2]
[353167191,1739619055733,-500.0,0.00011369,2]
[353167192,1739619055742,-185.717147,0.00011369,2]
[353167193,1739619055752,-398.95,0.00011369,2]
[353167194,1739619055762,-500.0,0.00011369,2]
[353167195,1739619055772,-500.0,0.00011369,2]
[353167196,1739619055782,-500.0,0.00011369,2]
[353167197,1739619055791,-574.85,0.00011369,2]
[353167198,1739619055801,-500.0,0.00011369,2]
[353167199,1739619055812,-500.0,0.00011369,2]
[353167200,1739619055821,-500.0,0.00011369,2]
[353167201,1739619055831,-500.0,0.00011369,2]
[353167202,1739619055840,-500.0,0.00011369,2]
[353167203,1739619055849,-500.0,0.00011369,2]
[353167204,1739619055858,-500.0,0.00011369,2]
[353167205,1739619055868,-286.07,0.00011369,2]
[353167206,1739619055877,-500.0,0.00011369,2]
[353167207,1739619055887,-500.0,0.00011369,2]
[353167208,1739619055898,-500.0,0.00011369,2]
[353167209,1739619055908,-500.0,0.00011369,2]
[353167210,1739619055917,-500.0,0.00011369,2]
[353167211,1739619055927,-405.21,0.00011369,2]
[353167212,1739619055937,-500.0,0.00011369,2]
[353167213,1739619055947,-264.53,0.00011369,2]
[353167214,1739619055956,-641.45,0.00011369,2]
[353167215,1739619055966,-500.0,0.00011369,2]
[353167216,1739619055975,-500.0,0.00011369,2]
[353167217,1739619055984,-315.99,0.00011369,2]
[353167218,1739619055993,-237.02,0.00011369,2]
[353167219,1739619056003,-522.13,0.00011369,2]
[353167220,1739619056012,-367.94162851,0.00011369,2]
[353167221,1739619056021,-500.0,0.00011369,2]
[353167222,1739619056033,-500.0,0.00011369,2]
[353167223,1739619056042,-500.0,0.00011369,2]
[353167224,1739619056052,-500.0,0.00011369,2]
[353167225,1739619056062,-500.0,0.00011369,2]
[353167226,1739619056071,-186.85,0.00011369,2]
[353167227,1739619056081,-500.0,0.00011369,2]
[353167228,1739619056092,-596.55,0.00011369,2]
[353167229,1739619056102,-500.0,0.00011369,2]
[353167230,1739619056112,-628.66,0.00011369,2]
[353167231,1739619056121,-500.0,0.00011369,2]
[353167232,1739619056131,-526.64,0.00011369,2]
[353167233,1739619056142,-307.33,0.00011369,2]
[353167234,1739619056152,-530.78,0.00011369,2]
[353167235,1739619056162,-619.87,0.00011369,2]
[353167236,1739619056172,-385.57,0.00011369,2]
[353167237,1739619056181,-1162.02,0.00011369,2]
[353167238,1739619056191,-500.0,0.00011369,2]
[353167239,1739619056200,-837.66,0.00011369,2]
[353167240,1739619056210,-646.81,0.00011369,2]
[353167241,1739619056221,-531.07,0.00011369,2]
[353167242,1739619056231,-500.0,0.00011369,2]
[353167243,1739619056240,-500.0,0.00011369,2]
[353167244,1739619056249,-500.0,0.00011369,2]
[353167245,1739619056259,-500.0,0.00011369,2]
[353167246,1739619056268,-500.0,0.00011369,2]
[353167247,1739619056278,-784.31,0.00011369,2]
[353167248,1739619056289,-500.0,0.00011369,2]
[353167249,1739619056299,-500.0,0.00011369,2]
[353167250,1739619056308,-262.33,0.00011369,2]
[353167251,1739619056318,-175.46087579,0.00011369,2]
[353167252,1739619056327,-282.84,0.00011369,2]
[353167253,1739619056337,-1107.07,0.00011369,2]
[353167254,1739619056347,-533.3,0.00011369,2]
[353167255,1739619056359,-819.55,0.00011369,2]
[353167256,1739619056369,-843.68,0.00011369,2]
[353167257,1739619056379,-500.0,0.00011369,2]
[353167258,1739619056389,-647.45,0.00011369,2]
[353167259,1739619056399,-500.0,0.00011369,2]
[353167260,1739619056408,-500.0,0.00011369,2]
[353167261,1739619056418,-500.0,0.00011369,2]
[353167262,1739619056427,-500.0,0.00011369,2]
[353167263,1739619056437,-630.02,0.00011369,2]
[353167264,1739619056447,-500.0,0.00011369,2]
[353167265,1739619056457,-580.45,0.00011369,2]
[353167266,1739619056466,-724.12,0.00011369,2]
[353167267,1739619056475,-548.96,0.00011369,2]
[353167268,1739619056484,-500.0,0.00011369,2]
[353167269,1739619056493,-854.44,0.00011369,2]
[353167270,1739619056503,-1881.76,0.00011369,2]
[353167271,1739619056512,-500.0,0.00011369,2]
[353167272,1739619056521,-500.0,0.00011369,2]
[353167273,1739619056531,-579.54,0.00011369,2]
[353167274,1739619056541,-2632.38,0.00011369,2]
[353167275,1739619056551,-500.0,0.00011369,2]
[353167276,1739619056560,-1314.99,0.00011369,2]
[353167277,1739619056569,-461.66,0.00011369,2]
[353167278,1739619056578,-500.0,0.00011369,2]
[353167279,1739619056587,-989.59,0.00011369,2]
[353167280,1739619056597,-455.85,0.00011369,2]
[353167281,1739619056607,-774.47,0.00011369,2]
[353167282,1739619056617,-500.0,0.00011369,2]
[353167283,1739619056626,-500.0,0.00011369,2]
[353167284,1739619056635,-1132.95,0.00011369,2]
[353167285,1739619056644,-537.7,0.00011369,2]
[353167286,1739619056653,-157.92,0.00011369,2]
[353167287,1739619056663,-601.61,0.00011369,2]
[353167288,1739619056672,-416.01,0.00011369,2]
[353167289,1739619056682,-313.32,0.00011369,2]
[353167290,1739619056691,-714.88,0.00011369,2]
[353167291,1739619056700,-500.0,0.00011369,2]
[353167292,1739619056710,-500.0,0.00011369,2]
[353167293,1739619056719,-233.78,0.00011369,2]
[353167294,1739619056728,-631.2,0.00011369,2]
[353167295,1739619056738,-500.0,0.00011369,2]
[353167296,1739619056747,-791.89,0.00011369,2]
[353167297,1739619056756,-500.0,0.00011369,2]
[353167298,1739619056767,-500.0,0.00011369,2]
[353167299,1739619056777,-500.0,0.00011369,2]
[353167300,1739619056786,-500.0,0.00011369,2]
[353167301,1739619056796,-833.76,0.00011369,2]
[353167302,1739619056805,-367.26,0.00011369,2]
[353167303,1739619056815,-500.0,0.00011369,2]
[353167304,1739619056825,-500.0,0.00011369,2]
[353167305,1739619056834,-500.0,0.00011369,2]
[353167306,1739619056844,-500.0,0.00011369,2]
[353167307,1739619056854,-755.55,0.00011369,2]
[353167308,1739619056863,-500.0,0.00011369,2]
[353167309,1739619056873,-500.0,0.00011369,2]
[353167310,1739619056882,-500.0,0.00011369,2]
[353167311,1739619056892,-500.0,0.00011369,2]
[353167312,1739619056901,-500.0,0.00011369,2]
[353167313,1739619056911,-500.0,0.00011369,2]
[353167314,1739619056920,-739.88,0.00011369,2]
[353167315,1739619056930,-500.0,0.00011369,2]
[353167316,1739619056939,-500.0,0.00011369,2]
[353167317,1739619056949,-1185.97,0.00011369,2]
[353167318,1739619056958,-764.15,0.00011369,2]
[353167319,1739619056967,-500.0,0.00011369,2]
[353167320,1739619056977,-4057.71,0.00011369,2]
[353167321,1739619056986,-1015.48,0.00011369,2]
[353167322,1739619056996,-500.0,0.00011369,2]
[353167323,1739619057006,-11455.83794274,0.0001138,2]
[353167324,1739619057015,-333.89027322,0.0001138,2]
[353167325,1739619057024,-1432.67968872,0.0001138,2]
[353167326,1739619057034,-581.6232356,0.00011383,2]
[353167327,1739619057043,-900.0,0.00011438,2]
[353167328,1739619057054,-900.0,0.00011438,2]
[353167329,1739619057064,-1000.0,0.00011441,2]
[353167330,1739619057075,-940.41,0.0001145,2]
[353167331,1739619057084,-500.0,0.0001145,2]
[353167332,1739619057098,-500.0,0.0001145,2]
[353167333,1739619057107,-694.41,0.0001145,2]
[353167334,1739619057116,-554.54,0.0001145,2]
[353167335,1739619057125,-786.58,0.0001145,2]
[353167336,1739619057135,-829.98,0.0001145,2]
[353167337,1739619057144,-500.0,0.0001145,2]
[353167338,1739619057153,-606.13,0.0001145,2]
[353167339,1739619057163,-971.24,0.0001145,2]
[353167340,1739619057172,-500.19,0.0001145,2]
[353167341,1739619057182,-888.16,0.0001145,2]
[353167342,1739619057191,-500.0,0.0001145,2]
[353167343,1739619057206,-500.0,0.0001145,2]
[353167344,1739619057215,-500.0,0.0001145,2]
[353167345,1739619057224,-717.64,0.0001145,2]
[353167346,1739619057234,-1161.09,0.0001145,2]
[353167347,1739619057244,-500.0,0.0001145,2]
[353167348,1739619057253,-500.0,0.0001145,2]
[353167349,1739619057263,-500.0,0.0001145,2]
[353167350,1739619057272,-500.0,0.0001145,2]
[353167351,1739619057281,-500.0,0.0001145,2]
[353167352,1739619057291,-835.01,0.0001145,2]
[353167353,1739619057300,-1195.38,0.0001145,2]
[353167354,1739619057309,-500.0,0.0001145,2]
[353167355,1739619057318,-566.8,0.0001145,2]
[353167356,1739619057327,-500.0,0.0001145,2]
[353167357,1739619057337,-519.07,0.0001145,2]
[353167358,1739619057346,-500.0,0.00011451,2]
[353167359,1739619057356,-500.0,0.00011451,2]
[353167360,1739619057365,-500.0,0.00011451,2]
[353167361,1739619057414,-500.0,0.00011451,2]
[353167362,1739619057423,-500.0,0.00011451,2]
[353167363,1739619057433,-184.33,0.00011451,2]
[353167364,1739619057443,-500.0,0.00011451,2]
[353167365,1739619057452,-500.0,0.00011451,2]
[353167366,1739619057461,-500.0,0.00011451,2]
[353167367,1739619057471,-500.0,0.00011451,2]
[353167368,1739619057484,-500.0,0.00011451,2]
[353167369,1739619057493,-2793.53,0.00011451,2]
[353167370,1739619057503,-500.0,0.00011451,2]
[353167371,1739619057513,-191.188552,0.00011451,2]
[353167372,1739619057522,-500.0,0.00011451,2]
[353167373,1739619057532,-603.72,0.00011451,2]
[353167374,1739619057542,-500.0,0.00011451,2]
[353167375,1739619057553,-185.717147,0.00011451,2]
[353167376,1739619057563,-337.4,0.00011451,2]
[353167377,1739619057572,-500.0,0.00011451,2]
[353167378,1739619057581,-500.0,0.00011451,2]
[353167379,1739619057592,-500.0,0.00011451,2]
[353167380,1739619057605,-338.06,0.00011451,2]
[353167381,1739619057614,-500.0,0.00011451,2]
[353167382,1739619057623,-500.0,0.00011451,2]
[353167383,1739619057639,-500.0,0.00011451,2]
[353167384,1739619057649,-500.0,0.00011451,2]
[353167385,1739619057658,-500.0,0.00011451,2]
[353167386,1739619057667,-500.0,0.00011451,2]
[353167387,1739619057677,-500.0,0.00011451,2]
[353167388,1739619057686,-500.0,0.00011451,2]
[353167389,1739619057695,-526.64,0.00011451,2]
[353167390,1739619057705,-500.0,0.00011451,2]
[353167391,1739619057715,-500.0,0.00011451,2]
[353167392,1739619057725,-500.0,0.00011451,2]
[353167393,1739619057735,-500.0,0.00011451,2]
[353167394,1739619057745,-522.13,0.00011451,2]
[353167395,1739619057755,-500.0,0.00011451,2]
[353167396,1739619057764,-500.0,0.00011451,2]
[353167397,1739619057774,-500.0,0.00011451,2]
[353167398,1739619057783,-500.0,0.00011451,2]
[353167399,1739619057792,-500.0,0.00011451,2]
[353167400,1739619057801,-500.0,0.00011451,2]
[353167401,1739619057811,-596.55,0.00011451,2]
[353167402,1739619057820,-167.72,0.00011451,2]
[353167403,1739619057830,-628.66,0.00011451,2]
[353167404,1739619057839,-500.0,0.00011451,2]
[353167405,1739619057848,-526.64,0.00011451,2]
[353167406,1739619057857,-619.87,0.00011451,2]
[353167407,1739619057866,-1162.02,0.00011451,2]
[353167408,1739619057875,-560.9,0.00011451,2]
[353167409,1739619057884,-837.66,0.00011451,2]
[353167410,1739619057894,-646.81,0.00011451,2]
[353167411,1739619057904,-531.07,0.00011451,2]
[353167412,1739619057913,-500.0,0.00011451,2]
[353167413,1739619057923,-500.0,0.00011451,2]
[353167414,1739619057933,-500.0,0.00011451,2]
[353167415,1739619057943,-500.0,0.00011451,2]
[353167416,1739619057952,-576.09,0.00011451,2]
[353167417,1739619057962,-784.31,0.00011451,2]